bitfinex-derivatives/quotes_BTCF0:USTF0_20251230
["timestamp","ask_amount","ask_price","bid_price","bid_amount"]
[1767060097564,0.0574,87307.0,87295.0,0.0114689]
[1767060100364,0.0574,87307.0,87294.0,0.01153365]
[1767060101158,0.0574,87307.0,87297.0,0.0114686]
[1767060101359,0.0574,87307.0,87295.0,0.0114689]
[1767060102462,0.0574,87307.0,87294.0,6.465e-05]
[1767060102668,0.0574,87307.0,87295.0,0.0114688]
[1767060102867,0.0574,87307.0,87297.0,0.15614699]
[1767060103756,0.0574,87307.0,87298.0,0.0114685]
[1767060105067,0.0574,87308.0,87298.0,0.0114685]
[1767060105868,0.0574,87308.0,87290.0,0.01626274]
[1767060106068,0.0574,87308.0,87289.0,0.0574]
[1767060106870,9.115e-05,87307.0,87290.0,0.15614699]
[1767060107270,9.115e-05,87307.0,87290.0,0.16761649]
[1767060108573,9.115e-05,87307.0,87293.0,0.0114691]
[1767060110375,9.115e-05,87307.0,87290.0,0.15614699]
[1767060110577,9.115e-05,87307.0,87291.0,0.0114693]
[1767060112971,9.115e-05,87307.0,87282.0,0.11605597]
[1767060113175,0.15614699,87300.0,87282.0,0.05429863]
[1767060113367,0.15488,87299.0,87282.0,0.05429863]
[1767060114165,0.15488,87299.0,87280.0,0.15614699]
[1767060115275,0.15488,87299.0,87278.0,0.00229154]
[1767060115477,0.05713,87298.0,87278.0,0.00229154]
[1767060115875,0.05713,87298.0,87280.0,0.15614699]
[1767060118878,0.05713,87298.0,87281.0,0.0114706]
[1767060124784,0.15488,87297.0,87281.0,0.0114706]
[1767060130387,0.15488,87297.0,87284.0,0.0114703]
[1767060133890,0.15488,87297.0,87280.0,0.15614699]
[1767060134085,0.09748,87302.0,87291.0,0.0114693]
[1767060134289,0.0574,87301.0,87291.0,0.0114693]
[1767060135291,0.0574,87300.0,87291.0,0.0114693]
[1767060137890,0.0574,87300.0,87290.0,0.15614699]
[1767060138191,0.04466115,87307.0,87290.0,0.15614699]
[1767060138392,0.15488,87306.0,87290.0,0.15614699]
[1767060139399,0.15488,87305.0,87290.0,0.15614699]
[1767060139700,0.15488,87305.0,87285.0,0.0574]
[1767060140102,0.15488,87305.0,87286.0,0.01147]
[1767060140405,0.15488,87305.0,87290.0,0.15614699]
[1767060140605,0.04466115,87307.0,87290.0,0.15614699]
[1767060140802,0.0574,87306.0,87290.0,0.15614699]
[1767060141107,0.15488,87306.0,87290.0,0.15614699]
[1767060141507,0.04466115,87307.0,87290.0,0.15614699]
[1767060141807,0.15488,87306.0,87290.0,0.15614699]
[1767060142108,0.04466115,87307.0,87290.0,0.15614699]
[1767060142407,0.15488,87306.0,87290.0,0.15614699]
[1767060143895,0.04466115,87307.0,87290.0,0.15614699]
[1767060143896,0.0574,87305.0,87290.0,0.15614699]
[1767060144198,0.15488,87305.0,87290.0,0.15614699]
[1767060146104,0.04466115,87307.0,87290.0,0.15614699]
[1767060146307,0.0574,87304.0,87290.0,0.15614699]
[1767060146611,0.0574,87303.0,87290.0,0.15614699]
[1767060147206,0.04466115,87307.0,87290.0,0.15614699]
[1767060147407,0.15488,87306.0,87290.0,0.15614699]
[1767060148005,0.15488,87306.0,87285.0,0.0574]
[1767060148509,0.15488,87306.0,87286.0,0.01147]
[1767060149812,0.15475739,87306.0,87287.0,0.01785137]
[1767060150107,0.15475739,87306.0,87288.0,0.01785137]
[1767060150296,0.15475739,87306.0,87289.0,0.01785137]
[1767060150499,0.15475739,87306.0,87290.0,0.01785137]
[1767060150708,0.15475739,87306.0,87291.0,0.01785137]
[1767060150904,0.15475739,87306.0,87292.0,0.01785137]
[1767060151105,0.15475739,87306.0,87293.0,0.01785137]
[1767060151303,0.15475739,87306.0,87294.0,0.01785137]
[1767060151503,0.15475739,87306.0,87295.0,0.01785137]
[1767060151704,0.15475739,87306.0,87289.0,0.0114696]
[1767060152505,0.15475739,87306.0,87290.0,0.04608258]
[1767060154610,0.06675,87305.0,87290.0,0.04608258]
[1767060156303,0.0574,87306.0,87285.0,0.0574]
[1767060156516,0.057,87308.0,87285.0,0.0574]
[1767060157211,0.057,87308.0,87293.0,0.0114691]
[1767060158812,0.057,87308.0,87292.0,0.0574]
[1767060159911,0.12861,87308.0,87292.0,0.0574]
[1767060162714,0.0114679,87303.0,87293.0,0.01788791]
[1767060162916,0.0114679,87303.0,87288.0,0.0574]
[1767060163414,0.0574,87302.0,87285.0,0.09748]
[1767060163713,0.0574,87302.0,87283.0,0.0574]
[1767060168319,0.0114681,87301.0,87283.0,0.0574]
[1767060169323,0.0114687,87297.0,87283.0,0.0574]
[1767060170308,0.0574,87302.0,87283.0,0.0574]
[1767060170309,0.0114682,87301.0,87283.0,0.0574]
[1767060171820,0.0574,87302.0,87283.0,0.0574]
[1767060172316,0.0574,87302.0,87279.0,0.04122452]
[1767060172823,0.0574,87302.0,87280.0,0.04122452]
[1767060173010,0.0114695,87291.0,87278.0,0.15717154]
[1767060174017,0.00017178,87293.0,87278.0,0.15717154]
[1767060174909,0.00017178,87293.0,87278.0,0.05969154]
[1767060175114,0.0114697,87289.0,87278.0,0.00229154]
[1767060177721,0.02398165,87288.0,87278.0,0.00229154]
[1767060177917,0.0114697,87289.0,87278.0,0.00229154]
[1767060180122,0.09748,87292.0,87278.0,0.00229154]
[1767060180321,0.02397216,87291.0,87278.0,0.00229154]
[1767060180522,0.02397216,87290.0,87278.0,0.00229154]
[1767060180712,0.02397216,87289.0,87278.0,0.00229154]
[1767060180913,0.05218,87291.0,87278.0,0.00229154]
[1767060181222,0.02397134,87290.0,87278.0,0.00229154]
[1767060181515,0.05218,87291.0,87278.0,0.00229154]
[1767060181721,0.02396752,87290.0,87278.0,0.00229154]
[1767060181917,0.05218,87291.0,87278.0,0.00229154]
[1767060182223,0.02396752,87290.0,87278.0,0.00229154]
[1767060182516,0.05218,87291.0,87278.0,0.00229154]
[1767060182718,0.03543583,87290.0,87278.0,0.00229154]
[1767060182911,0.02396622,87289.0,87278.0,0.00229154]
[1767060183116,0.0114695,87290.0,87278.0,0.00229154]
[1767060183317,0.02396417,87289.0,87278.0,0.00229154]
[1767060183511,0.0114695,87290.0,87278.0,0.00229154]
[1767060183716,0.0239633,87289.0,87278.0,0.00229154]
[1767060184022,0.02396295,87288.0,87278.0,0.00229154]
[1767060184222,0.02396295,87287.0,87278.0,0.00229154]
[1767060184516,0.08136295,87286.0,87278.0,0.00229154]
[1767060184720,0.02396295,87285.0,87278.0,0.00229154]
[1767060184913,0.02396295,87284.0,87278.0,0.00229154]
[1767060185115,0.0574,87286.0,87278.0,0.00229154]
[1767060185422,0.02395901,87285.0,87278.0,0.00229154]
[1767060185621,0.02395901,87284.0,87278.0,0.00229154]
[1767060185823,0.0574,87286.0,87278.0,0.00229154]
[1767060186024,0.02395801,87285.0,87278.0,0.00229154]
[1767060186219,0.02395801,87284.0,87278.0,0.00229154]
[1767060186420,0.0574,87286.0,87278.0,0.00229154]
[1767060186616,0.02395624,87285.0,87278.0,0.00229154]
[1767060186822,0.02395624,87284.0,87278.0,0.00229154]
[1767060187017,0.0574,87286.0,87278.0,0.00229154]
[1767060187327,0.02395623,87285.0,87278.0,0.00229154]
[1767060187518,0.02395623,87284.0,87278.0,0.00229154]
[1767060187719,0.0574,87286.0,87278.0,0.00229154]
[1767060187921,0.02395655,87285.0,87278.0,0.00229154]
[1767060188224,0.02395655,87284.0,87278.0,0.00229154]
[1767060188418,0.0574,87286.0,87278.0,0.00229154]
[1767060188624,0.02395743,87285.0,87278.0,0.00229154]
[1767060188825,0.02395743,87284.0,87278.0,0.00229154]
[1767060189025,0.0574,87286.0,87278.0,0.00229154]
[1767060189323,0.02395743,87285.0,87278.0,0.00229154]
[1767060189624,0.02395743,87284.0,87278.0,0.00229154]
[1767060189926,0.0574,87286.0,87278.0,0.00229154]
[1767060190125,0.0239588,87285.0,87278.0,0.00229154]
[1767060190325,0.0239588,87284.0,87278.0,0.00229154]
[1767060190528,0.0574,87286.0,87278.0,0.00229154]
[1767060190721,0.0239607,87285.0,87278.0,0.00229154]
[1767060191020,0.0239607,87284.0,87278.0,0.00229154]
[1767060191220,0.0574,87286.0,87278.0,0.00229154]
[1767060191417,0.02396332,87285.0,87278.0,0.00229154]
[1767060191719,0.02396332,87284.0,87278.0,0.00229154]
[1767060191916,0.02396332,87283.0,87278.0,0.00229154]
[1767060192118,0.0574,87286.0,87278.0,0.00229154]
[1767060192429,0.02396342,87285.0,87278.0,0.00229154]
[1767060192626,0.02396342,87284.0,87278.0,0.00229154]
[1767060192825,0.02396342,87283.0,87278.0,0.00229154]
[1767060193025,0.0574,87286.0,87278.0,0.00229154]
[1767060193226,0.02396681,87285.0,87278.0,0.00229154]
[1767060193427,0.02396681,87284.0,87278.0,0.00229154]
[1767060193627,0.02396681,87283.0,87278.0,0.00229154]
[1767060193828,0.0574,87286.0,87278.0,0.00229154]
[1767060199931,0.02397844,87285.0,87278.0,0.00229154]
[1767060200136,0.0574,87286.0,87278.0,0.00229154]
[1767060200437,0.02397889,87285.0,87278.0,0.00229154]
[1767060200636,0.0574,87286.0,87278.0,0.00229154]
[1767060200836,0.02398257,87285.0,87278.0,0.00229154]
[1767060201030,0.0574,87286.0,87278.0,0.00229154]
[1767060201236,0.02398257,87285.0,87278.0,0.00229154]
[1767060201439,0.02398257,87284.0,87278.0,0.00229154]
[1767060201640,0.0574,87286.0,87278.0,0.00229154]
[1767060201837,0.02398739,87285.0,87278.0,0.00229154]
[1767060202038,0.02398739,87284.0,87278.0,0.00229154]
[1767060202239,0.0574,87286.0,87278.0,0.00229154]
[1767060202435,0.02399336,87285.0,87278.0,0.00229154]
[1767060202634,0.02399336,87284.0,87278.0,0.00229154]
[1767060202852,0.06950834,87286.0,87278.0,0.00229154]
[1767060203036,0.02399331,87285.0,87278.0,0.00229154]
[1767060203230,0.02399331,87284.0,87278.0,0.00229154]
[1767060203430,0.02399691,87283.0,87278.0,0.00229154]
[1767060203630,0.0574,87286.0,87278.0,0.00229154]
[1767060203835,0.02399686,87285.0,87278.0,0.00229154]
[1767060204037,0.02399686,87284.0,87278.0,0.00229154]
[1767060204236,0.02399686,87283.0,87278.0,0.00229154]
[1767060204437,0.0574,87286.0,87278.0,0.00229154]
[1767060204638,0.02393838,87285.0,87278.0,0.00229154]
[1767060204838,0.02393838,87284.0,87278.0,0.00229154]
[1767060205038,0.02393838,87283.0,87278.0,0.00229154]
[1767060205239,0.0574,87286.0,87278.0,0.00229154]
[1767060205440,0.02394195,87285.0,87263.0,0.09748]
[1767060205640,0.02394195,87284.0,87256.0,0.15933551]
[1767060205837,0.0114718,87273.0,87256.0,9.817e-05]
[1767060206039,0.17882195,87272.0,87256.0,9.817e-05]
[1767060206340,0.03588464,87271.0,87256.0,9.817e-05]
[1767060206638,0.02441254,87270.0,87256.0,9.817e-05]
[1767060206841,0.02441125,87269.0,87256.0,9.817e-05]
[1767060207042,0.15488,87272.0,87256.0,9.817e-05]
[1767060207240,0.02441123,87271.0,87256.0,9.817e-05]
[1767060207436,0.02441123,87270.0,87256.0,9.817e-05]
[1767060207645,0.15488,87272.0,87256.0,9.817e-05]
[1767060207834,0.02439916,87271.0,87256.0,9.817e-05]
[1767060208144,0.02439916,87270.0,87256.0,9.817e-05]
[1767060208339,0.15488,87272.0,87256.0,9.817e-05]
[1767060208539,0.15631593,87270.0,87256.0,9.817e-05]
[1767060209249,0.02439099,87271.0,87256.0,9.817e-05]
[1767060212539,0.0574,87270.0,87260.0,0.15631593]
[1767060212750,0.02439099,87271.0,87256.0,9.817e-05]
[1767060212941,0.15492,87270.0,87256.0,9.817e-05]
[1767060221050,0.06723,87269.0,87256.0,9.817e-05]
[1767060224351,0.02435788,87268.0,87256.0,9.817e-05]
[1767060224551,0.02435788,87267.0,87256.0,9.817e-05]
[1767060224751,0.06723,87269.0,87256.0,9.817e-05]
[1767060224948,0.02435794,87268.0,87256.0,9.817e-05]
[1767060225148,0.02435794,87267.0,87256.0,9.817e-05]
[1767060225355,0.06723,87269.0,87256.0,9.817e-05]
[1767060225649,0.02435962,87268.0,87256.0,9.817e-05]
[1767060225954,0.02435962,87267.0,87256.0,9.817e-05]
[1767060226141,0.02436156,87266.0,87256.0,9.817e-05]
[1767060226345,0.06723,87269.0,87256.0,9.817e-05]
[1767060226543,0.02436142,87268.0,87256.0,9.817e-05]
[1767060226752,0.02436142,87267.0,87256.0,9.817e-05]
[1767060226951,0.02436142,87266.0,87256.0,9.817e-05]
[1767060227154,0.0574,87265.0,87256.0,9.817e-05]
[1767060230159,0.02437303,87264.0,87256.0,9.817e-05]
[1767060230457,0.0574,87265.0,87256.0,9.817e-05]
[1767060230644,0.02437303,87264.0,87256.0,9.817e-05]
[1767060230844,0.0574,87265.0,87256.0,9.817e-05]
[1767060231154,0.02437301,87264.0,87248.0,0.00229233]
[1767060231354,0.02437779,87263.0,87248.0,0.00229233]
[1767060231553,0.02437779,87262.0,87248.0,0.00229233]
[1767060231754,0.0574,87265.0,87250.0,0.15631593]
[1767060231954,0.02437763,87264.0,87248.0,0.00229233]
[1767060232149,0.02437763,87263.0,87248.0,0.00229233]
[1767060232360,0.02437763,87262.0,87248.0,0.00229233]
[1767060234354,9.444e-05,87263.0,87248.0,0.00229233]
[1767060240577,0.05601,87262.0,87248.0,0.00229233]
[1767060270892,0.02461177,87261.0,87248.0,0.00229233]
[1767060271092,0.05601,87262.0,87248.0,0.00229233]
[1767060271287,0.02461234,87261.0,87248.0,0.00229233]
[1767060271490,0.05601,87262.0,87248.0,0.00229233]
[1767060271795,0.02460935,87261.0,87248.0,0.00229233]
[1767060271996,0.05601,87262.0,87248.0,0.00229233]
[1767060274291,0.0246057,87261.0,87248.0,0.00229233]
[1767060274495,0.0246057,87260.0,87248.0,0.00229233]
[1767060274696,0.0246057,87259.0,87248.0,0.00229233]
[1767060274891,0.0246057,87258.0,87248.0,0.00229233]
[1767060275096,0.05601,87262.0,87248.0,0.00229233]
[1767060275296,0.02460567,87261.0,87248.0,0.00229233]
[1767060275495,0.02460567,87260.0,87248.0,0.00229233]
[1767060275700,0.02460567,87259.0,87248.0,0.00229233]
[1767060275998,0.02460567,87258.0,87248.0,0.00229233]
[1767060276192,0.05601,87262.0,87248.0,0.00229233]
[1767060276498,0.02460448,87261.0,87248.0,0.00229233]
[1767060276699,0.02460448,87260.0,87248.0,0.01376733]
[1767060276900,0.02460448,87259.0,87248.0,0.01376733]
[1767060277101,0.05601,87262.0,87248.0,0.01376733]
[1767060277399,0.02460297,87261.0,87248.0,0.01376733]
[1767060277698,0.02460297,87260.0,87248.0,0.01376733]
[1767060277890,0.02460297,87259.0,87248.0,0.00229233]
[1767060278199,0.05601,87262.0,87248.0,0.00229233]
[1767060278398,0.02460191,87261.0,87249.0,0.0114749]
[1767060278598,0.02460191,87260.0,87249.0,0.0114749]
[1767060278799,0.02460191,87259.0,87249.0,0.0114749]
[1767060278999,0.05601,87262.0,87249.0,0.0114749]
[1767060279200,0.02460198,87261.0,87249.0,0.0114749]
[1767060279401,0.02460198,87260.0,87249.0,0.0114749]
[1767060279595,0.02460198,87259.0,87249.0,0.0114749]
[1767060279794,0.05601,87262.0,87249.0,0.0114749]
[1767060279997,0.02460158,87261.0,87249.0,0.0114749]
[1767060280305,0.02460158,87260.0,87249.0,0.0114749]
[1767060280506,0.02460158,87259.0,87249.0,0.0114749]
[1767060280807,0.05601,87262.0,87249.0,0.0114749]
[1767060281007,0.02460139,87261.0,87249.0,0.0114749]
[1767060281300,0.02460139,87260.0,87249.0,0.0114749]
[1767060281501,0.02460139,87259.0,87249.0,0.0114749]
[1767060281702,0.05601,87262.0,87249.0,0.0114749]
[1767060281899,0.0246012,87261.0,87249.0,0.0114749]
[1767060282099,0.0246012,87260.0,87249.0,0.0114749]
[1767060282401,0.0246012,87259.0,87249.0,0.0114749]
[1767060282601,0.05601,87262.0,87249.0,0.0114749]
[1767060282802,0.02460103,87261.0,87249.0,0.0114749]
[1767060283002,0.02460103,87260.0,87249.0,0.0114749]
[1767060283296,0.05601,87262.0,87249.0,0.0114749]
[1767060283297,0.02460103,87259.0,87249.0,0.0114749]
[1767060283603,0.05601,87262.0,87248.0,0.00229233]
[1767060283802,0.02460096,87261.0,87248.0,0.00229233]
[1767060284104,0.02460096,87260.0,87248.0,0.01376733]
[1767060284296,0.02460096,87259.0,87248.0,0.01376733]
[1767060284502,0.05601,87262.0,87248.0,0.01376733]
[1767060284697,0.02460117,87261.0,87248.0,0.01376733]
[1767060284995,0.05601,87262.0,87248.0,0.01376733]
[1767060285191,0.02460124,87261.0,87248.0,0.01376733]
[1767060285391,0.05601,87262.0,87248.0,0.01376733]
[1767060285703,0.02460131,87261.0,87248.0,0.01376733]
[1767060285902,0.05601,87262.0,87248.0,0.01376733]
[1767060286103,0.0246013,87261.0,87248.0,0.01376733]
[1767060286305,0.05601,87262.0,87248.0,0.01376733]
[1767060286499,0.02460136,87261.0,87248.0,0.01376733]
[1767060286701,0.05601,87262.0,87248.0,0.01376733]
[1767060286900,0.02460132,87261.0,87248.0,0.01376733]
[1767060287102,0.05601,87262.0,87248.0,0.01376733]
[1767060287298,0.02460133,87261.0,87248.0,0.01376733]
[1767060287496,0.05601,87262.0,87248.0,0.00229233]
[1767060287700,0.02460146,87261.0,87248.0,0.00229233]
[1767060287905,0.02460146,87260.0,87248.0,0.00229233]
[1767060288106,0.05601,87262.0,87248.0,0.00229233]
[1767060288302,0.0246015,87261.0,87248.0,0.00229233]
[1767060288605,0.0246015,87260.0,87248.0,0.00229233]
[1767060288811,0.05601,87262.0,87248.0,0.00229233]
[1767060288995,0.02460143,87261.0,87248.0,0.00229233]
[1767060289194,0.02460143,87260.0,87248.0,0.00229233]
[1767060289407,0.05601,87262.0,87248.0,0.00229233]
[1767060289613,0.02460143,87261.0,87248.0,0.00229233]
[1767060289905,0.02460143,87260.0,87248.0,0.00229233]
[1767060290105,0.05601,87262.0,87248.0,0.00229233]
[1767060290303,0.0246014,87261.0,87248.0,0.00229233]
[1767060290504,0.05601,87262.0,87248.0,0.00229233]
[1767060290704,0.02460146,87261.0,87248.0,0.00229233]
[1767060291005,0.05601,87262.0,87248.0,0.00229233]
[1767060291206,0.02460146,87261.0,87248.0,0.00229233]
[1767060291510,0.02460195,87260.0,87248.0,0.00229233]
[1767060291699,0.05601,87262.0,87248.0,0.00229233]
[1767060291900,0.02460229,87261.0,87248.0,0.00229233]
[1767060292103,0.02460229,87260.0,87248.0,0.00229233]
[1767060292306,0.05601,87262.0,87248.0,0.00229233]
[1767060292605,0.02460247,87261.0,87248.0,0.00229233]
[1767060292803,0.02460247,87260.0,87248.0,0.00229233]
[1767060293004,0.05601,87262.0,87248.0,0.00229233]
[1767060293206,0.02460245,87261.0,87248.0,0.00229233]
[1767060293401,0.02460245,87260.0,87248.0,0.00229233]
[1767060293602,0.05601,87262.0,87248.0,0.00229233]
[1767060293903,0.0246027,87261.0,87248.0,0.00229233]
[1767060294204,0.02460304,87260.0,87248.0,0.00229233]
[1767060294409,0.05601,87262.0,87248.0,0.00229233]
[1767060294605,0.02469744,87261.0,87248.0,0.00229233]
[1767060294809,0.02469744,87260.0,87248.0,0.00229233]
[1767060295011,0.02469744,87259.0,87248.0,0.00229233]
[1767060295313,0.05601,87262.0,87248.0,0.00229233]
[1767060295514,0.02469794,87261.0,87248.0,0.00229233]
[1767060295813,0.02469794,87260.0,87248.0,0.00229233]
[1767060296012,0.02469794,87259.0,87248.0,0.00229233]
[1767060296215,0.05601,87262.0,87248.0,0.00229233]
[1767060296512,0.02469854,87261.0,87248.0,0.00229233]
[1767060296714,0.02469854,87260.0,87248.0,0.00229233]
[1767060296909,0.02469854,87259.0,87248.0,0.00229233]
[1767060297098,9.444e-05,87263.0,87248.0,0.00229233]
[1767060297302,0.02469862,87262.0,87248.0,0.00229233]
[1767060297502,0.02469862,87261.0,87238.0,0.0114763]
[1767060297714,0.00017188,87258.0,87234.0,0.06196107]
[1767060297912,0.02469862,87257.0,87236.0,0.09752]
[1767060298914,0.02469862,87257.0,87237.0,0.0114765]
[1767060299915,0.05778,87256.0,87237.0,0.0114765]
[1767060300215,0.05778,87256.0,87240.0,0.0114761]
[1767060304914,0.05778,87256.0,87243.0,0.0114756]
[1767060305215,0.05778,87256.0,87239.0,0.0114762]
[1767060305714,0.05778,87256.0,87236.0,0.09752]
[1767060306015,0.05778,87256.0,87237.0,0.0114764]
[1767060306418,0.05778,87256.0,87240.0,0.0114761]
[1767060310120,0.05778,87256.0,87243.0,0.0114757]
[1767060310319,0.05778,87256.0,87246.0,0.0114753]
[1767060310520,0.00017188,87258.0,87236.0,0.09752]
[1767060311514,0.00017188,87258.0,87240.0,0.0114761]
[1767060311917,0.00017188,87258.0,87236.0,0.1089965]
[1767060313224,0.04271,87257.0,87236.0,0.1089965]
[1767060313921,0.04271,87257.0,87239.0,0.0114762]
[1767060315723,0.04271,87257.0,87236.0,0.09752]
[1767060315922,0.04271,87257.0,87237.0,0.0114765]
[1767060318924,0.04271,87257.0,87240.0,0.0114761]
[1767060321626,0.04271,87257.0,87237.0,0.0114765]
[1767060321925,0.04271,87257.0,87240.0,0.0114761]
[1767060323517,0.0574,87256.0,87236.0,0.03696107]
[1767060323713,0.02469921,87255.0,87230.0,0.0574]
[1767060323913,0.09752,87254.0,87230.0,0.0574]
[1767060324118,0.02469921,87253.0,87230.0,0.0574]
[1767060325023,0.011475,87249.0,87218.0,0.00229312]
[1767060325322,0.0114753,87247.0,87218.0,0.00229312]
[1767060325620,0.0114755,87245.0,87218.0,0.00229312]
[1767060325821,0.00017188,87240.0,87218.0,0.00229312]
[1767060326024,0.08222349,87239.0,87218.0,0.00229312]
[1767060326225,0.02469921,87238.0,87218.0,0.00229312]
[1767060326426,0.02469921,87238.0,87218.0,0.00224312]
[1767060327224,0.02469921,87238.0,87215.0,0.0114794]
[1767060327622,0.02469921,87238.0,87207.0,0.05744]
[1767060327828,0.00017199,87231.0,87209.0,0.0114801]
[1767060328027,0.08213921,87230.0,87209.0,0.0114801]
[1767060328331,0.05744,87230.0,87209.0,0.0114801]
[1767060328821,0.02515186,87229.0,87209.0,0.0114801]
[1767060329026,0.05744,87230.0,87209.0,0.0114801]
[1767060329232,0.02515177,87229.0,87206.0,0.09752]
[1767060329416,0.02513979,87228.0,87204.0,0.0114808]
[1767060329622,0.03661759,87227.0,87204.0,8e-07]
[1767060329933,0.02513979,87226.0,87204.0,8e-07]
[1767060330137,0.02513979,87225.0,87204.0,8e-07]
[1767060330430,0.02526045,87224.0,87204.0,8e-07]
[1767060330731,0.08257979,87223.0,87204.0,8e-07]
[1767060330929,0.12265979,87222.0,87204.0,8e-07]
[1767060331231,0.09752,87222.0,87204.0,8e-07]
[1767060331433,0.05744,87221.0,87204.0,8e-07]
[1767060331733,0.05744,87221.0,87205.0,0.0114807]
[1767060332028,0.05744,87220.0,87205.0,0.0114807]
[1767060332224,0.05744,87220.0,87204.0,8e-07]
[1767060332425,0.00012066,87224.0,87204.0,8e-07]
[1767060332619,0.05744,87223.0,87204.0,8e-07]
[1767060340331,0.05744,87223.0,87205.0,0.0114807]
[1767060343230,0.05744,87223.0,87208.0,0.0114802]
[1767060343536,6e-08,87224.0,87217.0,0.0114791]
[1767060348124,6e-08,87224.0,87214.0,0.15647219]
[1767060348125,0.00017199,87231.0,87214.0,0.15647219]
[1767060348330,0.00017199,87231.0,87221.0,0.16795079]
[1767060348731,0.05748,87240.0,87221.0,0.16795079]
[1767060348933,0.02511061,87239.0,87221.0,0.16795079]
[1767060349130,0.02511061,87238.0,87221.0,0.16795079]
[1767060349345,0.02520261,87237.0,87221.0,0.16795079]
[1767060349535,0.02511061,87236.0,87221.0,0.16795079]
[1767060350437,0.02511061,87236.0,87224.0,0.0114782]
[1767060350843,0.10313324,87265.0,87226.0,0.15647219]
[1767060350844,0.01171482,87249.0,87226.0,0.15647219]
[1767060351142,0.15504,87248.0,87230.0,0.15647219]
[1767060351949,0.15521199,87248.0,87230.0,0.15647219]
[1767060352847,0.15521199,87248.0,87231.0,0.0114773]
[1767060354347,0.05892,87247.0,87231.0,0.0114773]
[1767060354948,0.05892,87247.0,87230.0,0.15647219]
[1767060358843,0.05892,87247.0,87230.0,0.21391219]
[1767060361353,0.05892,87247.0,87230.0,0.05744]
[1767060362857,0.02520004,87246.0,87230.0,0.05744]
[1767060363157,0.02520004,87245.0,87230.0,0.05744]
[1767060363456,0.02520004,87244.0,87230.0,0.05744]
[1767060363651,0.02520004,87243.0,87221.0,0.0114786]
[1767060363857,0.15647219,87240.0,87222.0,0.155]
[1767060364049,0.02520004,87239.0,87222.0,0.155]
[1767060364353,0.02520004,87238.0,87222.0,0.155]
[1767060364558,0.02520058,87237.0,87223.0,0.05744]
[1767060364752,0.02520058,87236.0,87223.0,0.05744]
[1767060364953,0.02520058,87235.0,87223.0,0.05744]
[1767060365251,0.08264169,87234.0,87220.0,0.00017199]
[1767060365451,0.02520169,87233.0,87220.0,0.00017199]
[1767060365652,0.0114773,87231.0,87220.0,0.00017199]
[1767060366458,0.02520377,87230.0,87220.0,0.00017199]
[1767060366661,0.0114773,87231.0,87220.0,0.00017199]
[1767060366861,0.02520395,87230.0,87220.0,0.00017199]
[1767060367158,0.0114777,87228.0,87220.0,0.00017199]
[1767060367854,0.0114777,87228.0,87220.0,9e-08]
[1767060368057,0.011478,87226.0,87208.0,0.05748]
[1767060368260,0.0114784,87223.0,87208.0,0.05748]
[1767060368661,0.02520688,87222.0,87208.0,0.05748]
[1767060368860,0.0114784,87223.0,87208.0,0.05748]
[1767060369055,0.02520682,87222.0,87208.0,0.05748]
[1767060369360,0.00017199,87224.0,87208.0,0.05748]
[1767060369554,0.0252086,87223.0,87208.0,0.05748]
[1767060369753,0.0252086,87222.0,87208.0,0.05748]
[1767060369954,0.00017199,87224.0,87208.0,0.05748]
[1767060370157,0.02520859,87223.0,87208.0,0.05748]
[1767060370358,0.02520859,87222.0,87208.0,0.05748]
[1767060370663,0.00017199,87224.0,87208.0,0.05748]
[1767060370862,0.02521055,87223.0,87208.0,0.05748]
[1767060371057,0.02521055,87222.0,87208.0,0.05748]
[1767060371259,0.00017199,87224.0,87210.0,0.15647219]
[1767060371459,0.02521285,87223.0,87210.0,0.15647219]
[1767060371667,0.02521285,87222.0,87210.0,0.15647219]
[1767060371858,0.00017199,87224.0,87210.0,0.15647219]
[1767060372056,0.02521282,87223.0,87210.0,0.15647219]
[1767060372263,0.02521282,87222.0,87208.0,0.05748]
[1767060372464,0.02521282,87221.0,87208.0,0.05748]
[1767060372765,0.00017199,87224.0,87208.0,0.05748]
[1767060372959,0.02521488,87223.0,87208.0,0.05748]
[1767060373156,0.02521488,87222.0,87208.0,0.05748]
[1767060373367,0.00017199,87224.0,87210.0,0.15647219]
[1767060374055,0.0114769,87235.0,87210.0,0.15647219]
[1767060374257,0.15504,87234.0,87210.0,0.15647219]
[1767060374764,0.15504,87234.0,87220.0,0.15647219]
[1767060377064,0.0114769,87235.0,87220.0,0.15647219]
[1767060377657,0.00017199,87236.0,87220.0,0.15647219]
[1767060378863,0.00017199,87236.0,87220.0,0.16795089]
[1767060380967,0.00017199,87236.0,87220.0,0.15647219]
[1767060381667,0.00017199,87236.0,87226.0,0.15647219]
[1767060381862,0.05748,87240.0,87226.0,0.15647219]
[1767060382067,0.05748,87240.0,87230.0,0.15647219]
[1767060383371,0.05748,87240.0,87226.0,0.00017199]
[1767060385270,0.02503973,87239.0,87226.0,0.00017199]
[1767060385470,0.02503973,87238.0,87226.0,0.00017199]
[1767060385671,0.02503973,87237.0,87226.0,0.00017199]
[1767060385873,0.02503973,87236.0,87226.0,0.00017199]
[1767060386065,0.02503973,87235.0,87226.0,0.00017199]
[1767060386265,0.02503973,87234.0,87226.0,0.00017199]
[1767060386573,0.02503973,87233.0,87226.0,0.00017199]
[1767060386772,0.02503973,87232.0,87226.0,0.00017199]
[1767060386975,0.02503973,87231.0,87226.0,0.00017199]
[1767060387174,0.05147,87238.0,87226.0,0.00017199]
[1767060387375,0.02504181,87237.0,87226.0,0.00017199]
[1767060387575,0.02504181,87236.0,87226.0,0.00017199]
[1767060387775,0.02504181,87235.0,87226.0,0.00017199]
[1767060387971,0.02504181,87234.0,87226.0,0.00017199]
[1767060388177,0.05147,87238.0,87226.0,0.00017199]
[1767060390475,0.00229233,87248.0,87228.0,0.15647219]
[1767060390669,0.05748,87245.0,87228.0,0.15647219]
[1767060392476,0.00229233,87248.0,87229.0,0.0114776]
[1767060392669,0.05977233,87248.0,87229.0,0.0114776]
[1767060392874,0.00229233,87248.0,87229.0,0.0114776]
[1767060393682,0.00017199,87247.0,87229.0,0.0114776]
[1767060393875,0.06216199,87247.0,87229.0,0.0114776]
[1767060394074,0.06216199,87247.0,87237.0,0.15647219]
[1767060394478,0.06216199,87247.0,87227.0,0.05748]
[1767060397080,0.06216199,87247.0,87228.0,0.0114776]
[1767060400082,0.02492942,87246.0,87228.0,0.0114776]
[1767060400284,0.02492942,87245.0,87228.0,0.0114776]
[1767060400480,0.02492942,87244.0,87228.0,0.0114776]
[1767060400783,0.02492942,87243.0,87228.0,0.0114776]
[1767060400976,0.02492942,87242.0,87228.0,0.0114776]
[1767060401182,0.02492942,87241.0,87228.0,0.0114776]
[1767060401386,0.06216199,87247.0,87228.0,0.0114776]
[1767060401583,0.02493062,87246.0,87228.0,0.0114776]
[1767060401781,0.06216199,87247.0,87228.0,0.0114776]